bitfinex-derivatives/quotes_SOLF0:USTF0_20250817
["timestamp","ask_amount","ask_price","bid_price","bid_amount"]
[1755390301992,1.26757933,188.72,188.65,1.26757933]
[1755390302188,8.87771652,188.71,188.65,1.26757933]
[1755390302390,8.87771652,188.7,188.65,1.26757933]
[1755390302588,4.07284162,188.69,188.65,1.26757933]
[1755390302793,4.07284162,188.68,188.65,1.26757933]
[1755390302992,1.26757933,188.72,188.65,1.26757933]
[1755390303196,8.87793221,188.71,188.65,1.26757933]
[1755390303493,8.87793221,188.7,188.65,1.26757933]
[1755390303683,4.07293471,188.69,188.65,1.26757933]
[1755390303884,4.07293471,188.68,188.65,1.26757933]
[1755390304091,1.26757933,188.72,188.65,1.26757933]
[1755390304392,8.87844854,188.71,188.65,1.26757933]
[1755390304591,8.87844854,188.7,188.65,1.26757933]
[1755390304791,4.07326313,188.69,188.65,1.26757933]
[1755390304993,4.07326313,188.68,188.65,1.26757933]
[1755390305192,1.26757933,188.72,188.65,1.26757933]
[1755390305493,8.87928232,188.71,188.65,1.26757933]
[1755390305790,8.87928232,188.7,188.65,1.26757933]
[1755390305991,4.07355359,188.69,188.65,1.26757933]
[1755390306189,4.07355359,188.68,188.65,1.26757933]
[1755390306393,1.26757933,188.72,188.65,1.26757933]
[1755390306591,8.88000684,188.71,188.65,1.26757933]
[1755390306889,8.88000684,188.7,188.65,1.26757933]
[1755390307086,4.0738861,188.69,188.65,1.26757933]
[1755390307294,4.0738861,188.68,188.65,1.26757933]
[1755390307494,1.26757933,188.72,188.65,1.26757933]
[1755390307693,8.88087699,188.71,188.65,1.26757933]
[1755390307892,8.88087699,188.7,188.65,1.26757933]
[1755390308193,4.07428509,188.69,188.65,1.26757933]
[1755390308394,4.07428509,188.68,188.65,1.26757933]
[1755390308598,1.26757933,188.72,188.65,1.26757933]
[1755390308794,8.88190228,188.71,188.65,1.26757933]
[1755390308994,8.88190228,188.7,188.65,1.26757933]
[1755390309195,4.07475545,188.69,188.65,1.26757933]
[1755390309498,4.07475545,188.68,188.65,1.26757933]
[1755390309693,1.26757933,188.72,188.65,1.26757933]
[1755390309885,8.88309467,188.71,188.65,1.26757933]
[1755390310090,8.88309467,188.7,188.65,1.26757933]
[1755390310296,8.88309467,188.69,188.65,1.26757933]
[1755390310493,4.07530247,188.68,188.65,1.26757933]
[1755390310694,1.26757933,188.72,188.65,1.26757933]
[1755390310894,8.88445246,188.71,188.65,1.26757933]
[1755390311094,8.88445246,188.7,188.65,1.26757933]
[1755390311294,8.88445246,188.69,188.65,1.26757933]
[1755390311494,4.0759255,188.68,188.65,1.26757933]
[1755390311697,4.0759255,188.67,188.65,1.26757933]
[1755390311901,1.26757933,188.72,188.65,1.26757933]
[1755390312100,8.88561989,188.71,188.65,1.26757933]
[1755390312301,8.88561989,188.7,188.65,1.26757933]
[1755390312501,8.88561989,188.69,188.65,1.26757933]
[1755390312800,4.07624302,188.68,188.65,1.26757933]
[1755390313003,4.07624302,188.67,188.65,1.26757933]
[1755390313192,1.26757933,188.73,188.65,1.26757933]
[1755390313494,8.88907382,188.72,188.65,1.26757933]
[1755390313689,8.88907382,188.71,188.65,1.26757933]
[1755390313892,8.88907382,188.7,188.65,1.26757933]
[1755390314090,8.88907382,188.69,188.65,1.26757933]
[1755390314294,4.07782757,188.68,188.65,1.26757933]
[1755390314493,4.07782757,188.67,188.65,1.26757933]
[1755390314690,1.26757933,188.73,188.65,1.26757933]
[1755390314898,8.89096538,188.72,188.65,1.26757933]
[1755390315200,8.89096538,188.71,188.65,1.26757933]
[1755390315402,8.89096538,188.7,188.65,1.26757933]
[1755390315601,8.89096538,188.69,188.65,1.26757933]
[1755390315901,4.07869538,188.68,188.65,1.26757933]
[1755390316105,4.07869538,188.67,188.65,1.26757933]
[1755390316302,7.18812022,188.73,188.65,1.26757933]
[1755390316508,8.8957009,188.72,188.65,1.26757933]
[1755390316696,4.080868,188.71,188.65,1.26757933]
[1755390316896,8.8957009,188.7,188.65,1.26757933]
[1755390317096,8.8957009,188.69,188.65,1.26757933]
[1755390317296,8.8957009,188.68,188.65,1.26757933]
[1755390317503,4.080868,188.67,188.65,1.26757933]
[1755390317800,4.080868,188.66,188.65,1.26757933]
[1755390318200,4.080868,188.72,188.65,1.26757933]
[1755390318401,8.90006499,188.71,188.65,1.26757933]
[1755390318600,8.90006499,188.7,188.65,1.26757933]
[1755390318905,8.90006499,188.69,188.65,1.26757933]
[1755390319093,8.90006499,188.68,188.65,1.26757933]
[1755390319294,4.080868,188.67,188.65,1.26757933]
[1755390319505,4.080868,188.66,188.65,1.26757933]
[1755390320404,4.080868,188.66,188.61,133.5584]
[1755390320609,4.080868,188.65,188.61,133.5584]
[1755390320904,5.92054089,188.72,188.64,1.26757933]
[1755390321106,8.65990045,188.71,188.64,1.26757933]
[1755390321308,8.65990045,188.7,188.64,1.26757933]
[1755390321497,8.65990045,188.69,188.64,1.26757933]
[1755390321702,8.65990045,188.68,188.64,1.26757933]
[1755390321898,4.09003052,188.67,188.64,1.26757933]
[1755390322100,4.09003052,188.66,188.64,1.26757933]
[1755390322303,4.09003052,188.65,188.64,1.26757933]
[1755390325998,4.09223602,188.65,188.64,1.26757933]
[1755390336211,4.09223602,188.65,188.64,6.56517933]
[1755390344823,4.09223602,188.65,188.64,1.26757933]
[1755390346023,4.09223602,188.65,188.64,6.56517933]
[1755390347725,4.09223602,188.65,188.64,1.26757933]
[1755390348124,5.92054089,188.72,188.64,1.26757933]
[1755390348329,8.39520061,188.71,188.66,1.26757933]
[1755390348531,4.09035311,188.7,188.66,1.26757933]
[1755390348726,4.09035311,188.69,188.66,1.26757933]
[1755390348926,4.09035311,188.68,188.66,1.26757933]
[1755390349126,4.09035311,188.67,188.66,1.26757933]
[1755390355836,5.92054089,188.74,188.66,1.26757933]
[1755390356139,8.39572981,188.73,188.68,1.26757933]
[1755390356337,4.0906048,188.72,188.68,1.26757933]
[1755390356532,4.0906048,188.71,188.68,1.26757933]
[1755390356739,4.0906048,188.7,188.68,1.26757933]
[1755390357038,4.0906048,188.69,188.68,1.26757933]
[1755390363540,4.08176269,188.69,188.68,1.26757933]
[1755390369241,4.08176269,188.69,188.68,6.56407933]
[1755390369449,5.92054089,188.78,188.68,1.78757933]
[1755390369651,8.48148706,188.77,188.75,1.26757933]
[1755390369845,4.08083584,188.76,188.75,1.26757933]
[1755390376347,4.08083584,188.76,188.74,1.26757933]
[1755390376551,4.08083584,188.75,188.74,1.26757933]
[1755390395566,4.08083584,188.75,188.67,42.0]
[1755390395766,4.08083584,188.74,188.69,1.26757933]
[1755390395963,4.08083584,188.73,188.69,1.26757933]
[1755390396164,4.08083584,188.72,188.69,1.26757933]
[1755390396367,4.08083584,188.71,188.67,1.26757933]
[1755390396564,4.08083584,188.7,188.67,1.26757933]
[1755390396767,1.26757933,188.74,188.67,1.26757933]
[1755390397072,8.95923187,188.73,188.67,1.26757933]
[1755390397372,8.95923187,188.72,188.67,1.26757933]
[1755390397566,8.95923187,188.71,188.67,1.26757933]
[1755390397772,1.26757933,188.74,188.67,1.26757933]
[1755390397773,4.06542327,188.7,188.67,1.26757933]
[1755390397964,1.26757933,188.74,188.67,1.26757933]
[1755390398165,8.95957319,188.73,188.67,1.26757933]
[1755390398369,8.95957319,188.72,188.67,1.26757933]
[1755390398566,8.95957319,188.71,188.67,1.26757933]
[1755390398762,4.06586826,188.7,188.67,1.26757933]
[1755390398966,1.26757933,188.74,188.67,1.26757933]
[1755390399162,8.96431798,188.73,188.67,1.26757933]
[1755390399373,8.96431798,188.72,188.67,1.26757933]
[1755390399669,8.96431798,188.71,188.67,1.26757933]
[1755390399862,4.06799776,188.7,188.67,1.26757933]
[1755390400061,1.26757933,188.74,188.67,1.26757933]
[1755390400260,8.96460115,188.73,188.67,1.26757933]
[1755390400471,8.96460115,188.72,188.67,1.26757933]
[1755390400671,8.96460115,188.71,188.67,1.26757933]
[1755390400874,4.06848518,188.7,188.67,1.26757933]
[1755390401170,1.26757933,188.74,188.67,1.26757933]
[1755390401365,8.96612086,188.73,188.67,1.26757933]
[1755390401570,8.96612086,188.72,188.67,1.26757933]
[1755390401773,8.96612086,188.71,188.67,1.26757933]
[1755390401973,4.06919653,188.7,188.67,1.26757933]
[1755390402172,1.26757933,188.74,188.67,1.26757933]
[1755390402374,8.96598244,188.73,188.67,1.26757933]
[1755390402577,8.96598244,188.72,188.67,1.26757933]
[1755390402768,8.96598244,188.71,188.67,1.26757933]
[1755390402963,4.06913162,188.7,188.67,1.26757933]
[1755390403167,1.26757933,188.74,188.67,1.26757933]
[1755390403369,8.96579918,188.73,188.67,1.26757933]
[1755390403571,8.96579918,188.72,188.67,1.26757933]
[1755390403772,8.96579918,188.71,188.67,1.26757933]
[1755390403968,4.06901988,188.7,188.67,1.26757933]
[1755390404162,1.26757933,188.74,188.67,1.26757933]
[1755390404372,8.96566587,188.73,188.67,1.26757933]
[1755390404571,8.96566587,188.72,188.67,1.26757933]
[1755390404772,8.96566587,188.71,188.67,1.26757933]
[1755390404966,4.06895899,188.7,188.67,1.26757933]
[1755390405169,4.06889679,188.69,188.66,1.26757933]
[1755390405371,1.26757933,188.74,188.66,1.26757933]
[1755390405570,8.96514735,188.73,188.66,1.26757933]
[1755390405784,8.96514735,188.72,188.66,1.26757933]
[1755390406066,8.96514735,188.71,188.66,1.26757933]
[1755390406270,8.96514735,188.7,188.66,1.26757933]
[1755390406470,8.96514735,188.69,188.66,1.26757933]
[1755390406672,4.06863373,188.68,188.66,1.26757933]
[1755390406870,1.26757933,188.72,188.66,1.26757933]
[1755390407068,8.96407141,188.71,188.66,1.26757933]
[1755390407268,8.96407141,188.7,188.66,1.26757933]
[1755390407468,8.96407141,188.69,188.66,1.26757933]
[1755390407772,4.06806671,188.68,188.66,1.26757933]
[1755390408073,1.26757933,188.72,188.66,1.26757933]
[1755390408273,8.96181407,188.71,188.66,1.26757933]
[1755390408469,8.96181407,188.7,188.66,1.26757933]
[1755390408675,8.96181407,188.69,188.66,1.26757933]
[1755390408890,4.06643435,188.68,188.66,1.26757933]
[1755390409076,1.26757933,188.72,188.66,1.26757933]
[1755390409271,8.96074571,188.71,188.66,1.26757933]
[1755390409574,8.96074571,188.7,188.66,1.26757933]
[1755390409778,8.96074571,188.69,188.66,1.26757933]
[1755390409973,4.06594959,188.68,188.66,1.26757933]
[1755390410168,1.26757933,188.72,188.66,1.26757933]
[1755390410366,8.95974186,188.71,188.66,1.26757933]
[1755390410566,8.95974186,188.7,188.66,1.26757933]
[1755390410767,8.95974186,188.69,188.66,1.26757933]
[1755390410980,4.06549006,188.68,188.66,1.26757933]
[1755390411165,1.26757933,188.72,188.66,1.26757933]
[1755390411476,8.95878126,188.71,188.66,1.26757933]
[1755390411775,8.95878126,188.7,188.65,1.26757933]
[1755390411976,8.95878126,188.69,188.65,1.26757933]
[1755390412180,1.26757933,188.72,188.65,1.26757933]
[1755390412377,8.95786062,188.71,188.65,1.26757933]
[1755390412577,8.95786062,188.7,188.65,1.26757933]
[1755390412771,8.95786062,188.69,188.65,1.26757933]
[1755390412977,4.06462931,188.68,188.65,1.26757933]
[1755390413176,1.26757933,188.72,188.65,1.26757933]
[1755390413376,8.95658848,188.71,188.65,1.26757933]
[1755390413577,8.95658848,188.7,188.65,1.26757933]
[1755390413776,8.95658848,188.69,188.65,1.26757933]
[1755390413977,4.06383672,188.68,188.65,1.26757933]
[1755390414177,1.26757933,188.72,188.65,1.26757933]
[1755390414480,8.95699667,188.71,188.65,1.26757933]
[1755390414680,8.95699667,188.7,188.65,1.26757933]
[1755390414979,8.95699667,188.69,188.65,1.26757933]
[1755390415179,4.0642311,188.68,188.65,1.26757933]
[1755390415378,1.26757933,188.72,188.65,1.26757933]
[1755390415579,8.95584149,188.71,188.59,42.0]
[1755390415787,8.95584149,188.7,188.65,1.26757933]
[1755390415971,8.95584149,188.69,188.65,1.26757933]
[1755390416181,8.95584149,188.68,188.65,1.26757933]
[1755390416376,4.06350329,188.67,188.65,1.26757933]
[1755390416580,1.26757933,188.72,188.65,1.26757933]
[1755390416882,9.00850149,188.71,188.65,1.26757933]
[1755390417186,9.00850149,188.7,188.65,1.26757933]
[1755390417480,9.00850149,188.69,188.65,1.26757933]
[1755390417681,9.00850149,188.68,188.65,1.26757933]
[1755390417881,4.06181669,188.67,188.65,1.26757933]
[1755390418074,1.26757933,188.72,188.65,1.26757933]
[1755390418289,9.00705945,188.71,188.65,1.26757933]
[1755390418479,9.00705945,188.7,188.65,1.26757933]
[1755390418679,9.00705945,188.69,188.65,1.26757933]
[1755390418876,9.00705945,188.68,188.65,1.26757933]
[1755390419182,4.06119364,188.67,188.65,1.26757933]
[1755390419378,1.26757933,188.72,188.6,5.2986]
[1755390419683,9.00451694,188.71,188.63,1.26757933]
[1755390419884,9.00451694,188.7,188.63,1.26757933]
[1755390420085,9.00451694,188.69,188.63,1.26757933]
[1755390420285,9.00451694,188.68,188.63,1.26757933]
[1755390420486,9.00451694,188.67,188.63,1.26757933]
[1755390420780,1.26757933,188.72,188.63,1.26757933]
[1755390420979,9.00287036,188.71,188.63,1.26757933]
[1755390421181,9.00287036,188.7,188.63,1.26757933]
[1755390421384,9.00287036,188.69,188.63,1.26757933]
[1755390421583,9.00287036,188.68,188.63,1.26757933]
[1755390421780,9.00287036,188.67,188.63,1.26757933]
[1755390422080,1.26757933,188.72,188.63,1.26757933]
[1755390422281,8.99893477,188.71,188.63,1.26757933]
[1755390422485,8.99893477,188.7,188.63,1.26757933]
[1755390422688,8.99893477,188.69,188.63,1.26757933]
[1755390422888,8.99893477,188.68,188.63,1.26757933]
[1755390423085,8.99893477,188.67,188.63,1.26757933]
[1755390423282,1.26757933,188.72,188.63,1.26757933]
[1755390423490,8.99522947,188.71,188.63,1.26757933]
[1755390423683,8.99522947,188.7,188.63,1.26757933]
[1755390423885,8.99522947,188.69,188.63,1.26757933]
[1755390424084,8.99522947,188.68,188.63,1.26757933]
[1755390424284,4.05590683,188.67,188.63,1.26757933]
[1755390424480,1.26757933,188.72,188.63,1.26757933]
[1755390424686,8.99475553,188.71,188.63,1.26757933]
[1755390424883,8.99475553,188.7,188.63,1.26757933]
[1755390425084,8.99475553,188.69,188.63,1.26757933]
[1755390425288,8.99475553,188.68,188.63,1.26757933]
[1755390425489,4.0557013,188.67,188.63,1.26757933]
[1755390425687,1.26757933,188.72,188.63,1.26757933]
[1755390425891,8.99443274,188.71,188.63,1.26757933]
[1755390426187,8.99443274,188.7,188.63,1.26757933]
[1755390426387,8.99443274,188.69,188.63,1.26757933]
[1755390426595,8.99443274,188.68,188.63,1.26757933]
[1755390426788,8.99443274,188.67,188.63,1.26757933]
[1755390426985,1.26757933,188.72,188.63,1.26757933]
[1755390427190,8.99416288,188.71,188.63,1.26757933]
[1755390427390,8.99416288,188.7,188.63,1.26757933]
[1755390427587,4.93870548,188.69,188.63,1.26757933]
[1755390427789,8.99413518,188.68,188.63,1.26757933]
[1755390428091,8.99413518,188.67,188.63,1.26757933]
[1755390428295,1.26757933,188.72,188.63,1.26757933]
[1755390428491,8.99419547,188.71,188.63,1.26757933]
[1755390428691,8.99419547,188.7,188.63,1.26757933]
[1755390428892,8.99419547,188.69,188.63,1.26757933]
[1755390429092,8.99419547,188.68,188.63,1.26757933]
[1755390429295,8.99419547,188.67,188.63,1.26757933]
[1755390429493,1.26757933,188.72,188.63,1.26757933]
[1755390429695,8.99449835,188.71,188.63,1.26757933]
[1755390429993,8.99449835,188.7,188.63,1.26757933]
[1755390430193,8.99449835,188.69,188.63,1.26757933]
[1755390430393,8.99449835,188.68,188.63,1.26757933]
[1755390430593,8.99449835,188.67,188.63,1.26757933]
[1755390430794,4.05563192,188.66,188.63,1.26757933]
[1755390430990,1.26757933,188.72,188.63,1.26757933]
[1755390431192,8.99499636,188.71,188.63,1.26757933]
[1755390431392,8.99499636,188.7,188.63,1.26757933]
[1755390431593,8.9953724,188.69,188.63,1.26757933]
[1755390431892,8.9953724,188.68,188.63,1.26757933]
[1755390432096,8.9953724,188.67,188.63,1.26757933]
[1755390432293,4.05586427,188.66,188.63,1.26757933]
[1755390432494,1.26757933,188.72,188.63,1.26757933]
[1755390432800,8.99527104,188.71,188.63,1.26757933]
[1755390432999,8.99527104,188.7,188.63,1.26757933]
[1755390433198,8.99527104,188.69,188.63,1.26757933]
[1755390433399,8.99527104,188.68,188.63,1.26757933]
[1755390433602,8.99527104,188.67,188.63,1.26757933]
[1755390433901,4.0560043,188.66,188.63,1.26757933]
[1755390434094,1.26757933,188.72,188.63,1.26757933]
[1755390434295,8.99471278,188.71,188.63,1.26757933]
[1755390434495,8.99471278,188.7,188.63,1.26757933]
[1755390434793,8.99471278,188.69,188.63,1.26757933]
[1755390434998,8.99471278,188.68,188.63,1.26757933]
[1755390435198,8.99471278,188.67,188.63,1.26757933]
[1755390435396,4.05541468,188.66,188.63,1.26757933]
[1755390435598,1.26757933,188.72,188.63,1.26757933]
[1755390435798,8.99450231,188.71,188.63,1.26757933]
[1755390436094,8.99450231,188.7,188.63,1.26757933]
[1755390436299,8.99450231,188.69,188.63,1.26757933]
[1755390436498,8.99450231,188.68,188.63,1.26757933]
[1755390436699,8.99450231,188.67,188.63,1.26757933]
[1755390436899,4.05584701,188.66,188.63,1.26757933]
[1755390437097,1.26757933,188.71,188.63,1.26757933]
[1755390437299,8.99329374,188.7,188.63,1.26757933]
[1755390437501,4.05460174,188.69,188.63,1.26757933]
[1755390437701,8.99331228,188.68,188.63,1.26757933]
[1755390437903,8.99331228,188.67,188.63,1.26757933]
[1755390438107,4.05460174,188.66,188.63,1.26757933]
[1755390438303,1.26757933,188.71,188.63,1.26757933]
[1755390438505,8.98513459,188.7,188.63,1.26757933]
[1755390438706,8.98513459,188.69,188.63,1.26757933]
[1755390438903,8.98513459,188.68,188.63,1.26757933]
[1755390439106,8.98513459,188.67,188.63,1.26757933]
[1755390439305,8.98695883,188.66,188.63,1.26757933]
[1755390439507,1.26757933,188.71,188.63,1.26757933]
[1755390439808,8.98857501,188.7,188.63,1.26757933]
[1755390440002,8.98857501,188.69,188.63,1.26757933]
[1755390440198,8.98857501,188.68,188.63,1.26757933]
[1755390440405,8.98857501,188.67,188.63,1.26757933]
[1755390440706,8.98857501,188.66,188.63,1.26757933]
[1755390440902,4.04627282,188.65,188.63,1.26757933]
[1755390441105,1.26757933,188.71,188.63,1.26757933]
[1755390441304,8.99524596,188.7,188.63,1.26757933]
[1755390441508,8.99524596,188.69,188.63,1.26757933]
[1755390441807,8.99524596,188.68,188.63,1.26757933]
[1755390442008,8.99524596,188.67,188.65,1.26757933]
[1755390442204,4.0492003,188.66,188.65,1.26757933]
[1755390442522,4.0492003,188.71,188.65,1.26757933]
[1755390442707,8.99648429,188.7,188.65,1.26757933]
[1755390442907,8.99648429,188.69,188.65,1.26757933]
[1755390443222,8.99648429,188.68,188.65,1.26757933]
[1755390443408,4.0492003,188.67,188.65,1.26757933]
[1755390443610,4.0492003,188.66,188.65,1.26757933]
[1755390443809,4.0492003,188.71,188.65,1.26757933]
[1755390444006,8.74473648,188.7,188.65,1.26757933]
[1755390444206,1.26757933,188.72,188.65,1.26757933]
[1755390444207,8.74473648,188.69,188.65,1.26757933]
[1755390444509,8.74473648,188.68,188.65,1.26757933]
[1755390444809,4.0492003,188.67,188.65,1.26757933]
[1755390445009,4.0492003,188.66,188.65,1.26757933]
[1755390445309,4.0492003,188.71,188.65,1.26757933]
[1755390445505,8.74577544,188.7,188.65,1.26757933]
[1755390445712,8.74577544,188.69,188.65,1.26757933]
[1755390445909,8.74577544,188.68,188.65,1.26757933]
[1755390446110,4.0492003,188.67,188.65,1.26757933]
[1755390446306,4.0492003,188.66,188.65,1.26757933]
[1755390446707,1.26757933,188.71,188.65,1.26757933]
[1755390446908,8.73867923,188.7,188.65,1.26757933]
[1755390447210,8.73867923,188.69,188.65,1.26757933]
[1755390447509,4.0492003,188.68,188.67,1.26757933]
[1755390447703,4.0492003,188.73,188.67,1.26757933]
[1755390447906,8.73973327,188.72,188.69,1.26757933]
[1755390448102,8.73973327,188.71,188.69,1.26757933]
[1755390448312,8.73973327,188.71,188.56,181.62227526]
[1755390448313,4.0492003,188.7,188.56,181.62227526]
[1755390448508,4.0492003,188.69,188.56,181.62227526]
[1755390448711,5.92054089,188.75,188.56,181.62227526]
[1755390448905,8.74447789,188.74,188.56,181.62227526]
[1755390449211,8.74447789,188.73,188.67,5.2966]
[1755390449407,8.74447782,188.72,188.71,1.26757933]
[1755390450415,4.05375895,188.72,188.71,1.26757933]
[1755390451111,8.74461275,188.72,188.71,1.26757933]
[1755390451316,4.05375895,188.72,188.71,1.26757933]
[1755390454221,89.94747556,188.8,188.71,1.26757933]
[1755390454412,8.48448256,188.79,188.76,1.26757933]
[1755390454616,4.05119109,188.78,188.76,1.26757933]
[1755390454810,4.05119109,188.77,188.76,1.26757933]
[1755390456418,89.02527925,188.8,188.76,1.26757933]
[1755390456617,4.0449746,188.79,188.76,1.26757933]
[1755390456818,89.02527925,188.8,188.76,1.26757933]
[1755390456819,4.0449746,188.78,188.76,1.26757933]
[1755390457015,89.02527925,188.8,188.76,1.26757933]
[1755390457216,4.0449746,188.79,188.76,1.26757933]
[1755390457416,4.0449746,188.78,188.76,1.26757933]
[1755390457616,357.34757933,188.83,188.76,1.26757933]
[1755390457818,8.4692642,188.82,188.76,1.26757933]
[1755390458020,4.04279686,188.81,188.76,1.26757933]
[1755390458221,4.04279686,188.8,188.76,1.26757933]
[1755390458421,4.04279686,188.79,188.76,1.26757933]
[1755390458631,358.26961682,188.83,188.76,1.26757933]
[1755390458820,4.04085067,188.82,188.76,1.26757933]
[1755390459021,4.04085067,188.81,188.76,1.26757933]
[1755390459324,4.04085067,188.8,188.76,1.26757933]
[1755390459522,4.04085067,188.79,188.76,1.26757933]
[1755390459730,358.26961682,188.83,188.76,1.26757933]
[1755390459918,4.03912702,188.82,188.76,1.26757933]
[1755390460217,4.03912702,188.81,188.76,1.26757933]
[1755390460414,4.03912702,188.8,188.76,1.26757933]
[1755390460620,4.03912702,188.79,188.76,1.26757933]
[1755390460820,358.26961682,188.83,188.76,1.26757933]
[1755390461020,4.03795947,188.82,188.76,1.26757933]
[1755390461223,4.03795947,188.81,188.74,5.2948]
[1755390461422,4.03795947,188.8,188.76,1.26757933]
[1755390461627,358.26961682,188.83,188.76,1.26757933]
[1755390461826,4.03665216,188.82,188.76,1.26757933]
[1755390462027,4.03665216,188.81,188.76,1.26757933]
[1755390462326,4.03665216,188.8,188.76,1.26757933]
[1755390462525,358.26961682,188.83,188.76,1.26757933]
[1755390462724,4.03549643,188.82,188.76,1.26757933]
[1755390463026,4.03549643,188.81,188.76,1.26757933]
[1755390463230,4.03549643,188.8,188.76,1.26757933]
[1755390463522,358.26961682,188.83,188.76,1.26757933]
[1755390463727,4.03447139,188.82,188.76,1.26757933]
[1755390463921,4.03447139,188.81,188.76,1.26757933]
[1755390464122,4.03447139,188.8,188.76,1.26757933]
[1755390464324,358.26961682,188.83,188.76,1.26757933]
[1755390464526,4.03356856,188.82,188.76,1.26757933]
[1755390464722,4.03356856,188.81,188.76,1.26757933]
[1755390464924,4.03356856,188.8,188.76,1.26757933]
[1755390465125,358.26961682,188.83,188.76,1.26757933]
[1755390465426,4.03356856,188.82,188.76,1.26757933]
[1755390465627,4.03356856,188.81,188.76,1.26757933]
[1755390465831,4.03356856,188.8,188.76,1.26757933]
[1755390466028,358.26961682,188.83,188.76,1.26757933]
[1755390466229,4.03297778,188.82,188.76,1.26757933]
[1755390466430,4.03297778,188.81,188.76,1.26757933]
[1755390466629,4.03297778,188.8,188.76,1.26757933]
[1755390466826,358.26961682,188.83,188.76,1.26757933]
[1755390467030,4.03233047,188.82,188.76,1.26757933]
[1755390467329,4.03233047,188.81,188.76,1.26757933]
[1755390467528,358.26961682,188.83,188.76,1.26757933]
[1755390467728,4.04528871,188.82,188.76,1.26757933]
[1755390467929,4.04528871,188.81,188.76,1.26757933]
[1755390468120,358.26961682,188.83,188.76,1.26757933]
[1755390468428,132.06551926,188.82,188.76,1.26757933]
[1755390468629,4.04551926,188.81,188.76,1.26757933]
[1755390470427,5.31309859,188.81,188.74,1.26757933]
[1755390470626,4.04514607,188.8,188.74,1.26757933]
[1755390470828,1.26757933,188.81,188.74,1.26757933]
[1755390471021,4.04514607,188.8,188.74,1.26757933]
[1755390471223,1.26757933,188.81,188.74,1.26757933]
[1755390471440,4.04514612,188.8,188.74,1.26757933]
[1755390471732,1.26757933,188.81,188.74,1.26757933]
[1755390471933,4.04507072,188.8,188.74,1.26757933]
[1755390472233,1.26757933,188.81,188.74,1.26757933]
[1755390472434,4.04507072,188.8,188.74,1.26757933]
[1755390472635,1.26757933,188.81,188.74,1.26757933]
[1755390472834,4.04411182,188.8,188.74,1.26757933]
[1755390473036,4.04411182,188.8,188.62,398.0]
[1755390473037,1.26757933,188.77,188.7,1.26757933]
[1755390473339,4.04265117,188.76,188.7,1.26757933]
[1755390473534,1.26757933,188.77,188.7,1.26757933]
[1755390473837,4.04273635,188.76,188.7,1.26757933]
[1755390474037,129.28757933,188.77,188.7,1.26757933]
[1755390474239,4.04273635,188.76,188.7,1.26757933]
[1755390474432,4.04273635,188.75,188.7,1.26757933]
[1755390474633,129.28757933,188.77,188.7,1.26757933]
[1755390474836,4.04326857,188.76,188.7,1.26757933]
[1755390475031,4.04326857,188.75,188.7,1.26757933]
[1755390475246,129.28757933,188.77,188.7,1.26757933]
[1755390475433,4.04361854,188.76,188.7,1.26757933]
[1755390475637,129.28757933,188.77,188.7,1.26757933]
[1755390475837,4.04416305,188.76,188.7,1.26757933]
[1755390476037,129.28757933,188.77,188.7,1.26757933]
[1755390476238,4.04416305,188.76,188.7,1.26757933]
[1755390476438,129.28757933,188.77,188.7,1.26757933]
[1755390476642,4.04475585,188.76,188.7,1.26757933]
[1755390476840,129.28757933,188.77,188.7,1.26757933]
[1755390477041,4.04474955,188.76,188.7,1.26757933]
[1755390477238,129.28757933,188.77,188.7,1.26757933]
[1755390477440,4.04474955,188.76,188.7,1.26757933]
[1755390477642,129.28757933,188.77,188.7,1.26757933]
[1755390477841,4.04540317,188.76,188.7,1.26757933]
[1755390478136,129.28757933,188.77,188.7,1.26757933]
[1755390478440,4.04540317,188.76,188.7,1.26757933]
[1755390478640,129.28757933,188.77,188.7,1.26757933]
[1755390478841,4.04610868,188.76,188.7,1.26757933]
[1755390479135,4.04610868,188.75,188.7,1.26757933]
[1755390479342,129.28757933,188.77,188.7,1.26757933]
[1755390479542,4.0466959,188.76,188.7,1.26757933]
[1755390479741,4.0466959,188.75,188.7,1.26757933]
[1755390479942,1.26757933,188.75,188.68,1.26757933]
[1755390480139,4.04634187,188.74,188.68,1.26757933]
[1755390480444,4.04634187,188.73,188.68,1.26757933]
[1755390480741,1.26757933,188.75,188.68,1.26757933]
[1755390480942,4.04680721,188.74,188.68,1.26757933]
[1755390481240,4.04680721,188.73,188.68,1.26757933]
[1755390481443,1.26757933,188.75,188.68,1.26757933]
[1755390481633,4.04736055,188.74,188.68,1.26757933]
[1755390481840,4.04736055,188.73,188.68,1.26757933]
[1755390482142,1.26757933,188.75,188.68,1.26757933]
[1755390482344,4.04759285,188.74,188.68,1.26757933]
[1755390482550,4.04759285,188.73,188.68,1.26757933]
[1755390482742,1.26757933,188.75,188.68,1.26757933]
[1755390482940,4.04841916,188.74,188.68,1.26757933]
[1755390483138,4.04841916,188.73,188.68,1.26757933]
[1755390483341,1.26757933,188.75,188.68,1.26757933]
[1755390483540,4.04862642,188.74,188.68,1.26757933]
[1755390487247,4.04862642,188.74,188.66,1.26757933]
[1755390490449,5.31620575,188.73,188.66,1.26757933]
[1755390490648,4.04862642,188.72,188.66,1.26757933]
[1755390500958,4.04862642,188.72,188.68,1.26757933]